[Event "15th Chennai GM Open 2025"]
[Site "Chennai"]
[Date "2025.01.08"]
[Round "9.10"]
[White "Kaustuv, Kundu"]
[Black "Mahindrakar Indrajeet"]
[Result "1-0"]
[ECO "E62"]
[WhiteElo "2409"]
[BlackElo "2098"]
[Annotator "TA"]
[PlyCount "119"]
[EventDate "2025.01.02"]
[EventType "swiss"]
[EventCountry "IND"]
[SourceTitle "playchess.com"]
[Source "ChessBase"]
[SourceQuality "1"]
[TimeControl "5400+30"]

{[%evp 14,119,62,64,69,48,59,43,45,46,44,14,8,0,0,-2,0,0,0,0,0,-7,0,0,0,-20,6,6,16,11,10,8,2,-43,-40,-50,-45,-54,0,-106,-89,-75,0,-92,7,0,0,-13,0,0,8,-13,-23,-36,26,26,26,26,26,26,26,9,26,26,26,19,19,16,19,32,98,89,621,585,619,568,524,363,362,341,315,140,354,326,362,376,358,367,499,490,477,474,786,782,1216,502,574,570,707,702,1141,1160,1102,1097,969,897,923,775]} 1. Nf3 {[%emt 0:04:23]} Nf6 {[%emt 0:05:53]} 2. c4 {[%emt 0:00:08]} Nc6 {[%emt 0:00:29]} 3. d4 {[%emt 0:04:01]} e6 {[%emt 0:00:21]} 4. g3 {[%emt 0:01:21]} d6 {[%emt 0:02:59]} 5. Bg2 {[%emt 0:00:09]} g6 {[%emt 0:00:11]} 6. O-O {[%emt 0:00:07]} Bg7 {[%emt 0:00:08]} 7. Nc3 {[%emt 0:00:07]} O-O {[%emt 0:00:19]} 8. e4 {[%emt 0:05:55]} a6 {[%emt 0:06:58]} 9. Re1 {[%emt 0:03:16]} Rb8 {[%emt 0:02:41]} 10. a4 {[%emt 0:00:26]} e5 {[%emt 0:20:39] White is slightly better.} 11. d5 {[%emt 0:03:45]} Nb4 {[%emt 0:03:11]} 12. c5 {[%emt 0:10:31]} Bg4 {[%emt 0:12:50]} 13. cxd6 {[%emt 0:00:28]} cxd6 {[%emt 0:01:31]} 14. Be3 {[%emt 0:03:00]} Nd7 {[%emt 0:01:02][%cal Bf6d7,Bd7c5,Bc5d3][%mdl 32]} 15. h3 {[%emt 0:01:13]} (15. a5 {is interesting.} b6 16. axb6 f5 17. exf5 gxf5 18. h3) 15... Bxf3 {[%emt 0:01:41]} 16. Bxf3 {[%emt 0:00:06]} f5 {[%emt 0:03:10]} 17. Rf1 {[%emt 0:15:50]} f4 {[%emt 0:04:01]} 18. Bd2 {[%emt 0:02:20]} Nc5 {[%emt 0:22:35]} 19. Kg2 {[%emt 0:01:51]} fxg3 {[%emt 0:03:18]} 20. fxg3 {[%emt 0:00:07]} h5 {[%emt 0:00:52]} 21. h4 {[%emt 0:04:31]} Rc8 {[%emt 0:00:57]} 22. Ne2 {[%emt 0:07:42]} (22. Be3 {simplifies} b6 23. Be2 Rxf1 24. Bxf1 Qc7 25. Rc1) 22... a5 {[%emt 0:02:21]} 23. Ng1 {[%emt 0:01:16]} Ncd3 {[%emt 0:00:31]} 24. Bc3 {[%emt 0:04:22]} Qb6 {[%emt 0:00:28][%cal Od3b2] Threatens to win with ...Nxb2!} 25. Qe2 {[%emt 0:01:01]} Rc7 {[%emt 0:00:54]} (25... Nc5 $15) 26. Rfd1 {[%emt 0:01:08]} (26. Nh3 $11 {keeps the balance.} Bf6 27. Qd2) 26... Nc5 $17 {[%emt 0:00:38] Excellent horsemanship.} 27. Ra3 {[%emt 0:04:27] [#] Dodges Nb3} Rcf7 {[%emt 0:00:24]} (27... Qa6 $1 $17 28. Re1 Bh6) 28. Be1 {[%emt 0:00:58]} (28. Bd2 $1 $11) 28... Qd8 {[%emt 0:00:21]} (28... Qa6 $17 29. Qxa6 bxa6) 29. Kh2 {[%emt 0:01:16]} Bh6 {[%emt 0:00:18]} 30. Bg2 {[%emt 0:00:14]} Kg7 {[%emt 0:01:04]} 31. Nf3 {[%emt 0:04:47]} Qd7 {[%emt 0:00:38]} 32. Bh3 {[%emt 0:01:05] Repels Qg4} Qe8 {[%emt 0:00:05]} 33. Bd2 {[%emt 0:00:30]} Bxd2 {[%emt 0:00:43]} (33... Nxa4 34. Bxh6+ Kxh6 35. Rd2 $16) (33... Nc2 $1 $15 34. Bxh6+ Kxh6 35. Qxc2 Rxf3 36. Rxf3 Rxf3) 34. Rxd2 $11 {[%emt 0:00:05]} Rf6 {[%emt 0:00:44]} 35. Bg2 {[%emt 0:01:06]} b6 {[%emt 0:00:44]} 36. Ng5 {[%emt 0:00:28]} Kg8 {[%emt 0:00:34]} 37. Qe3 {[%emt 0:01:06]} Nba6 {[%emt 0:00:30]} 38. b3 {[%emt 0:00:59]} Nb4 {[%emt 0:00:57]} 39. Ra1 {[%emt 0:00:09]} Qe7 {[%emt 0:01:01]} 40. Bh3 {[%emt 0:00:35][%cal Bg2h3,Bh3e6,Be6f7,Bf7g6][%mdl 32]} Rb8 {[%emt 0:00:32]} 41. Rg1 {[%emt 0:00:45][%cal Ba1g1,Bg1g2,Bg2f2][%mdl 32]} Qf8 {[%emt 0:00:42]} (41... Kg7 $14) 42. Rgg2 {[%emt 0:01:33] [#] Rgf2 is the strong threat.} Qh6 $2 {[%emt 0:00:43][%mdl 8192]} (42... Qe7 $16) 43. Be6+ $18 {[%emt 0:00:52]} Kg7 {[%emt 0:00:11]} 44. Rgf2 {[%emt 0:00:33] Rxf6 would now be deadly.} Rff8 {[%emt 0:00:17]} 45. Bf7 {[%emt 0:00:46]} Rb7 {[%emt 0:00:48]} 46. Qf3 {[%emt 0:05:31][%csl Gf2][%cal Rf3f6]} Kh8 {[%emt 0:00:01]} 47. Qf6+ {[%emt 0:00:26]} Qg7 {[%emt 0:00:01] This costs Black the game.} 48. Qxg6 {[%emt 0:00:12]} Qxg6 {[%emt 0:00:47]} 49. Bxg6 {[%emt 0:00:05]} Rxf2+ {[%emt 0:00:31]} 50. Rxf2 {[%emt 0:00:02]} Nxb3 {[%emt 0:00:49]} 51. Bxh5 {[%emt 0:01:01] White is clearly winning.} Nd4 {[%emt 0:01:12]} 52. Nf7+ {[%emt 0:00:16]} Kg7 {[%emt 0:00:36]} (52... Kg8 $142 53. Nxd6 Ra7 54. Bf7+ Kh7) 53. Nxd6 {[%emt 0:00:06]} Rd7 {[%emt 0:00:25]} 54. Nf5+ {[%emt 0:00:14]} (54. Ne8+ $142 Kh6 55. Rf6+ Kh7 56. Rxb6) 54... Nxf5 {[%emt 0:00:16]} 55. Rxf5 {[%emt 0:00:07] KRB-KRN} b5 {[%emt 0:00:27]} 56. Be8 {[%emt 0:00:18]} ({Weaker is} 56. Rxe5 bxa4 57. Rg5+ (57. Be8 a3 $14) 57... Kh8 $18) 56... Rc7 {[%emt 0:00:56]} 57. Bxb5 {[%emt 0:00:16]} Rc2+ {[%emt 0:00:19]} 58. Kh3 {[%emt 0:00:06]} Rd2 {[%emt 0:00:20]} 59. Rxe5 {[%emt 0:00:08]} Nc2 {[%emt 0:00:07]} 60. Rf5 {[%emt 0:00:30] Weighted Error Value: White=0.35/Black=0.30.  Loses game:     	---       	Black=2      Mistake:       	White=2     	Black=6      Inaccurate:     	White=2     	Black=4      OK:         	White=15    	Black=15     Best:        	White=2     	Black=1} 1-0

[Event "15th Chennai GM Open 2025"]
[Site "Chennai"]
[Date "2025.01.08"]
[Round "9.11"]
[White "Jaiswal, Rupesh"]
[Black "Slizhevsky, Alexander"]
[Result "0-1"]
[ECO "B80"]
[WhiteElo "2093"]
[BlackElo "2340"]
[Annotator "TA"]
[PlyCount "84"]
[EventDate "2025.01.02"]
[EventType "swiss"]
[EventCountry "IND"]
[SourceTitle "playchess.com"]
[Source "ChessBase"]
[SourceQuality "1"]
[TimeControl "5400+30"]

{[%evp 22,84,7,9,20,14,40,-3,0,0,0,-2,-18,-58,-53,-52,-44,-52,-68,-264,-261,-285,-281,-274,-206,-198,-199,-189,-193,-201,-195,-197,-146,-214,-225,-231,-223,-262,-261,-275,-241,-253,-252,-250,-250,-280,-279,-289,-272,-298,-263,-443,-442,-435,-432,-502,-531,-536,-533,-542,-511,-519,-535,-490,-477]} 1. e4 {[%emt 0:01:17]} c5 {[%emt 0:00:08]} 2. Nf3 {[%emt 0:00:43]} d6 {[%emt 0:00:08]} 3. d4 {[%emt 0:00:07]} cxd4 {[%emt 0:00:13]} 4. Nxd4 {[%emt 0:00:07]} Nf6 {[%emt 0:00:09]} 5. Nc3 {[%emt 0:00:06]} e6 {[%emt 0:00:57]} 6. g3 {[%emt 0:05:08]} Be7 {[%emt 0:03:40]} 7. Bg2 {[%emt 0:00:13]} O-O {[%emt 0:00:28]} 8. O-O {[%emt 0:01:10]} a6 {[%emt 0:01:12]} 9. a4 {[%emt 0:05:18]} Qc7 {[%emt 0:01:33]} 10. Be3 {[%emt 0:02:53]} Nc6 {[%emt 0:02:22]} 11. Nxc6 {[%emt 0:08:08]} bxc6 {[%emt 0:00:14]} 12. a5 {[%emt 0:00:27]} Bb7 {[%emt 0:07:15]} 13. Bb6 {[%emt 0:02:50]} Qb8 {[%emt 0:05:48]} 14. Re1 {[%emt 0:01:56]} c5 {[%emt 0:05:02]} 15. e5 {[%emt 0:03:23]} dxe5 {[%emt 0:00:43]} 16. Bxb7 {[%emt 0:16:08]} Qxb7 {[%emt 0:00:06]} 17. Rxe5 {[%emt 0:05:12][%cal Oc3a4]} Nd7 {[%emt 0:01:53]} 18. Re4 {[%emt 0:06:25]} Bf6 {[%emt 0:12:48]} (18... Nxb6 {simplifies} 19. axb6 Qxb6 20. b3 Rfd8) 19. Rc4 {[%emt 0:02:32]} Bd4 {[%emt 0:02:45][%cal Od7e5]} 20. Ne2 $2 {[%emt 0:10:31]} (20. Na4 $15) 20... Ne5 $19 {[%emt 0:02:32]} (20... Bxb2 21. Rb1 Ne5 (21... Nxb6 22. axb6 Bf6 23. Rxc5 $11) 22. Rf4 $17) (20... Nxb6 21. axb6 Bf6 (21... Bxb2 22. Rb1 $11) 22. Qd6 $15) 21. Nxd4 {[%emt 0:00:12]} Nxc4 {[%emt 0:00:57]} 22. Bxc5 {[%emt 0:00:14]} Rfd8 {[%emt 0:03:20][%cal Ob7d5]} 23. b4 {[%emt 0:02:37]} Qe4 {[%emt 0:02:49]} 24. Qd3 {[%emt 0:06:35] [#]} Qxd3 $1 {[%emt 0:01:19]} 25. cxd3 {[%emt 0:00:01]} Ne5 {[%emt 0:00:27][%cal Od8d4]} 26. Kf1 {[%emt 0:04:07]} Rac8 {[%emt 0:10:09]} ({Better is} 26... Nxd3 $19 27. Nc6 Rd7) 27. Bb6 {[%emt 0:03:14]} (27. Rb1 $17) 27... Rd5 {[%emt 0:07:10]} 28. Ke2 {[%emt 0:09:46] [#]} Nd7 $1 {[%emt 0:00:00]} 29. Ke3 {[%emt 0:01:16]} e5 {[%emt 0:03:29]} 30. Nb3 {[%emt 0:01:33]} Rb5 {[%emt 0:03:16]} 31. Nc5 {[%emt 0:01:11]} Nxb6 {[%emt 0:00:15]} 32. axb6 {[%emt 0:00:19]} Rxb6 {[%emt 0:00:10][%mdl 4096] Endgame KRR-KRN} ({Worse is} 32... Rxb4 33. Rxa6 g5 34. b7 Rxc5 35. Ra8+ Kg7 36. b8=Q Rxb8 37. Rxb8 $11) 33. Nd7 {[%emt 0:00:42]} Rxb4 {[%emt 0:00:28]} 34. Rxa6 {[%emt 0:00:30]} f6 {[%emt 0:01:25]} 35. Nb6 {[%emt 0:00:11]} Rd8 {[%emt 0:00:18] Threatens to win with ...Rb3.} 36. Na4 $2 {[%emt 0:00:50]} (36. Nc4 {is the only way for White.}) 36... Rb3 {[%emt 0:01:20]} 37. Nc5 {[%emt 0:00:19]} Rc3 {[%emt 0:00:15]} 38. Rc6 {[%emt 0:00:44]} Rd5 {[%emt 0:02:08]} 39. Rc8+ {[%emt 0:00:25]} Kf7 {[%emt 0:00:06]} 40. Rc7+ {[%emt 0:00:07]} Kg6 {[%emt 0:00:14]} 41. Ne6 {[%emt 0:00:23]} Rdxd3+ {[%emt 0:00:34]} 42. Ke2 {[%emt 0:00:10]} Rxc7 {[%emt 0:00:19]} 0-1

[Event "15th Chennai GM Open 2025"]
[Site "Chennai"]
[Date "2025.01.08"]
[Round "9.12"]
[White "Karthikeyan, P.."]
[Black "Madhesh Kumar S"]
[Result "1-0"]
[ECO "A11"]
[WhiteElo "2286"]
[BlackElo "2006"]
[Annotator "TA"]
[PlyCount "117"]
[EventDate "2025.01.02"]
[EventType "swiss"]
[EventCountry "IND"]
[SourceTitle "playchess.com"]
[Source "ChessBase"]
[SourceQuality "1"]
[TimeControl "5400+30"]

{[%evp 16,117,41,32,30,39,34,47,90,91,83,102,110,101,163,156,232,244,228,243,242,235,253,237,308,318,314,313,287,289,284,238,425,201,254,266,348,360,524,540,545,532,631,638,577,294,532,514,694,549,1206,1139,1802,1049,1153,1056,5514,513,508,489,681,522,514,524,522,518,492,492,501,505,631,571,638,627,636,620,989,984,852,797,825,797,3054,721,2012,845,829,767,670,651,651,647,725,691,650,633,733,711,833,809,6020,2061,29981,29982]} 1. c4 {[%emt 0:00:25]} Nf6 {[%emt 0:00:07]} 2. g3 {[%emt 0:00:28]} c6 {[%emt 0:00:22]} 3. Bg2 {[%emt 0:00:08]} d5 {[%emt 0:00:16]} 4. Nf3 {[%emt 0:00:15]} g6 {[%emt 0:00:10]} 5. b3 {[%emt 0:01:17]} Bg7 {[%emt 0:03:23]} 6. Bb2 {[%emt 0:00:31]} O-O {[%emt 0:00:18]} 7. O-O {[%emt 0:00:19]} Bf5 {[%emt 0:01:36]} 8. d3 {[%emt 0:01:00]} Re8 {[%emt 0:06:06]} 9. Nbd2 {[%emt 0:03:43]} Nbd7 {[%emt 0:06:23]} 10. Nd4 {[%emt 0:03:53]} Bg4 {[%emt 0:01:47]} 11. h3 {[%emt 0:01:46]} e5 {[%emt 0:01:52]} 12. Nxc6 $1 {[%emt 0:04:45]} bxc6 {[%emt 0:03:59]} 13. hxg4 {[%emt 0:00:26]} Bh6 {[%emt 0:09:38]} 14. Bh3 {[%emt 0:05:17]} e4 {[%emt 0:04:28] [#]} (14... a5 $16) 15. cxd5 $1 $18 {[%emt 0:03:52]} e3 {[%emt 0:20:31]} (15... exd3 $16 16. exd3 (16. dxc6 dxe2 17. cxd7 Qxd7 $19) 16... Nxd5) 16. dxc6 {[%emt 0:03:09]} Ne5 {[%emt 0:00:07]} 17. Bxe5 {[%emt 0:03:42]} Rxe5 {[%emt 0:00:42]} 18. Nc4 {[%emt 0:02:03]} exf2+ {[%emt 0:00:34]} 19. Rxf2 {[%emt 0:01:04]} Be3 {[%emt 0:00:10]} 20. Nxe5 {[%emt 0:10:51]} Qd6 {[%emt 0:05:05] [#]} 21. Kg2 $1 {[%emt 0:13:18]} Qxe5 {[%emt 0:05:31]} 22. Rf3 {[%emt 0:04:42]} Nd5 {[%emt 0:00:24]} 23. g5 {[%emt 0:05:54]} Qxg5 $2 {[%emt 0:10:00]} (23... Re8 24. Kh2 Bxg5) 24. Qf1 {[%emt 0:05:57]} (24. Qc2 $142) 24... Qe7 {[%emt 0:04:51]} 25. Bd7 {[%emt 0:01:45]} h5 {[%emt 0:00:45]} 26. Kh1 {[%emt 0:02:33]} h4 {[%emt 0:05:13]} (26... Rf8 {was worth a try.} 27. Qe1 Rd8) 27. Qh3 {[%emt 0:03:23]} hxg3 {[%emt 0:01:25]} 28. Qxg3 {[%emt 0:00:51]} Kg7 {[%emt 0:01:02]} 29. Raf1 {[%emt 0:01:11]} f6 {[%emt 0:02:21]} 30. Qg4 {[%emt 0:03:39]} Bg5 $2 {[%emt 0:01:00]} (30... Rh8+ 31. Rh3 Rxh3+ 32. Qxh3 Qe5) 31. Qe6 {[%emt 0:02:39]} Qc5 {[%emt 0:02:41]} 32. Be8 {[%emt 0:01:57][%cal Bd7e8,Be8g6,Bg6e4][%mdl 32]} Qf8 {[%emt 0:00:44] Inhibits Qf7+.} 33. Bxg6 {[%emt 0:03:36][%cal Of3h3]} Nc7 {[%emt 0:02:51]} 34. Qf5 {[%emt 0:01:24]} Qd6 {[%emt 0:00:27]} 35. Rh3 {[%emt 0:00:45] White threatens Rh7+ and mate.} Qxc6+ {[%emt 0:00:20]} 36. Qe4 {[%emt 0:00:10]} (36. e4 $142 Qe6 37. Rh7+ Kg8 38. Qf3 (38. Rxc7 Qxf5 39. Bxf5 Re8 $18)) 36... Qxe4+ {[%emt 0:00:45]} 37. Bxe4 {[%emt 0:00:08]} Rc8 {[%emt 0:00:21]} 38. Bf5 {[%emt 0:01:13]} Rh8 {[%emt 0:00:18]} 39. Rxh8 {[%emt 0:00:16]} Kxh8 {[%emt 0:00:06][%mdl 4096] Endgame KRB-KBN} 40. Kg2 {[%emt 0:01:03]} Nb5 {[%emt 0:00:50]} 41. Rh1+ {[%emt 0:00:20]} Kg8 {[%emt 0:00:06]} 42. Kf2 {[%emt 0:01:43]} Nc3 {[%emt 0:00:43]} 43. a3 {[%emt 0:01:41][%cal Ba2a3,Ba3a4][%mdl 32]} Nb5 {[%emt 0:00:14]} 44. a4 {[%emt 0:01:16]} Nd4 {[%emt 0:00:07]} 45. Be4 {[%emt 0:00:59]} a5 {[%emt 0:00:06]} 46. e3 {[%emt 0:00:29]} Nc2 {[%emt 0:00:05]} 47. Rh3 {[%emt 0:00:03]} Kf8 {[%emt 0:00:29]} 48. d4 {[%emt 0:00:07]} Na1 {[%emt 0:00:11]} 49. Bd5 {[%emt 0:00:39][%cal Ob3b4]} Ke7 {[%emt 0:00:06]} 50. Ke2 {[%emt 0:01:26] Strongly threatening Kd3.} Kd6 {[%emt 0:00:06]} 51. Bc4 {[%emt 0:00:06]} Nc2 {[%emt 0:00:05]} 52. Kd3 {[%emt 0:01:03]} Nb4+ {[%emt 0:00:07]} 53. Kc3 {[%emt 0:00:41]} Ke7 {[%emt 0:02:38]} 54. Rh7+ {[%emt 0:00:50]} Kd6 {[%emt 0:00:38]} 55. Kd2 {[%emt 0:00:11]} Nc6 {[%emt 0:00:07]} 56. Ke2 {[%emt 0:00:22]} f5 {[%emt 0:00:05]} 57. Rh5 {[%emt 0:00:22]} Bf6 {[%emt 0:00:29]} 58. Rxf5 {[%emt 0:00:18]} Bxd4 {[%emt 0:00:26]} 59. Rd5+ {[%emt 0:00:14]} 1-0

[Event "15th Chennai GM Open 2025"]
[Site "Chennai"]
[Date "2025.01.08"]
[Round "9.13"]
[White "Matta, Vinay Kumar"]
[Black "Sathvik Adiga"]
[Result "0-1"]
[ECO "C50"]
[WhiteElo "2091"]
[BlackElo "2395"]
[Annotator "TA"]
[PlyCount "82"]
[EventDate "2025.01.02"]
[EventType "swiss"]
[EventCountry "IND"]
[SourceTitle "playchess.com"]
[Source "ChessBase"]
[SourceQuality "1"]
[TimeControl "5400+30"]

{[%evp 18,82,0,0,12,9,11,0,25,35,34,21,13,0,10,8,25,23,77,64,72,79,59,68,63,53,54,43,43,11,38,53,49,5,10,0,4,1,0,-30,0,0,0,0,0,0,0,0,0,0,0,-650,-303,-342,-342,-385,-387,-381,-377,-599,-477,-475,-472,-537,-479,-533,-513]} 1. e4 {[%emt 0:00:05]} e5 {[%emt 0:00:02]} 2. Bc4 {[%emt 0:00:15]} Nf6 {[%emt 0:00:07]} 3. d3 {[%emt 0:00:05]} Nc6 {[%emt 0:00:04]} 4. Nc3 {[%emt 0:00:06]} Bc5 {[%emt 0:00:13]} 5. Nf3 {[%emt 0:00:22]} a6 {[%emt 0:00:11]} 6. O-O {[%emt 0:00:35]} d6 {[%emt 0:00:18]} 7. h3 {[%emt 0:00:21]} h6 {[%emt 0:00:27]} 8. a3 {[%emt 0:00:33]} O-O {[%emt 0:03:48]} 9. Be3 {[%emt 0:01:52]} Bxe3 {[%emt 0:07:29]} 10. fxe3 {[%emt 0:00:52]} Ne7 {[%emt 0:01:05]} 11. Nh4 {[%emt 0:05:34][%cal Of1f6]} c6 {[%emt 0:05:07]} 12. Qf3 {[%emt 0:04:00]} d5 {[%emt 0:02:34]} 13. Bb3 {[%emt 0:01:45]} Be6 {[%emt 0:03:24]} 14. Qg3 {[%emt 0:03:48][%csl LRe5,LRf6]} Nd7 {[%emt 0:00:37]} 15. Nf5 {[%emt 0:17:24]} Bxf5 {[%emt 0:00:38]} 16. exf5 {[%emt 0:00:08]} f6 {[%emt 0:10:36]} 17. e4 {[%emt 0:04:19][%cal Re4d5]} Nc5 {[%emt 0:03:45]} (17... Kh8 $11) 18. Ba2 $16 {[%emt 0:01:14]} Qd6 {[%emt 0:07:35]} 19. d4 {[%emt 0:06:39]} Nd7 {[%emt 0:00:35]} 20. Rad1 {[%emt 0:03:32]} Kh8 {[%emt 0:12:08]} 21. Kh1 {[%emt 0:13:32]} Rad8 {[%emt 0:04:14]} 22. exd5 {[%emt 0:02:53]} cxd5 {[%emt 0:00:38]} 23. Bxd5 {[%emt 0:07:40]} Qb6 {[%emt 0:02:54] Black is weak on the light squares} 24. Be6 {[%emt 0:05:05]} exd4 {[%emt 0:04:40]} 25. Na4 {[%emt 0:03:31]} Qb5 {[%emt 0:01:35]} 26. Rf4 {[%emt 0:02:24]} Nb8 {[%emt 0:15:55][%cal Bd7b8,Bb8c6,Bc6d4][%mdl 32]} (26... Qxa4 $6 27. Rfxd4 Qxc2 28. R4d2 Nxf5 29. Qf4 $18) 27. b3 {[%emt 0:06:05][%cal Og3d3]} (27. Rg4 {seems wilder.} Nxf5 28. Bxf5 Qxf5 29. Rxg7 Qxc2 30. Rd3) 27... Nbc6 {[%emt 0:04:02]} 28. Qe1 {[%emt 0:01:38]} d3 {[%emt 0:02:25]} 29. cxd3 {[%emt 0:04:46]} Rxd3 {[%emt 0:01:12]} 30. Rxd3 {[%emt 0:00:15]} Qxd3 {[%emt 0:00:02]} 31. Nc5 {[%emt 0:00:47][%csl LRb7,LRd3]} Qd6 {[%emt 0:00:30][%csl LRc5,LRf4]} 32. Qc1 {[%emt 0:00:26][%cal Of4h4]} (32. Nxb7 $2 {too greedy.} Qxf4 33. Bc4 Nxf5 $19) 32... Nd4 {[%emt 0:03:36]} 33. Nxb7 {[%emt 0:01:48]} Qe5 {[%emt 0:00:06][%cal Od4e2] ...Ne2! would now be deadly.} 34. Qd2 $2 {[%emt 0:00:49][%mdl 8192]} (34. Rg4 $11) 34... Nexf5 {[%emt 0:00:20]} (34... Ndxf5 $2 35. Bc4 $19) (34... Ne2 $142 {( -> ...Qa1+)} 35. g3 Qa1+ (35... Nxg3+ $2 36. Kg2 $19) 36. Kg2 Qg1+ (36... Nxf4+ $2 37. Qxf4 a5 38. Qd6 $19) 37. Kf3 Qf1+ (37... Nxf4 $2 38. gxf4 Qh1+ 39. Qg2 $19) (37... Nxg3 38. Qf2 $14) (37... Qxg3+ 38. Kxe2 Qg2+ 39. Kd1 $11) 38. Ke3 Nxf4 39. gxf4 Re8 (39... Qxh3+ $2 40. Kf2 $19)) 35. Bxf5 $19 {[%emt 0:00:31]} Nxf5 {[%emt 0:00:02]} 36. Qf2 {[%emt 0:00:22] [#] Inhibits Ng3+.} Rc8 $1 {[%emt 0:00:15]} 37. Rc4 {[%emt 0:01:23]} Ng3+ {[%emt 0:00:41]} 38. Qxg3 {[%emt 0:00:24]} (38. Kg1 {is the only way for White.} Qa1+ 39. Kh2 Nf1+ 40. Qxf1 Qxf1 41. Rxc8+ Kh7 42. Rc4) 38... Rxc4 {[%emt 0:00:29]} 39. Qxe5 {[%emt 0:00:54]} Rc1+ {[%emt 0:00:01]} 40. Kh2 {[%emt 0:00:06]} fxe5 {[%emt 0:00:14]} 41. Nd6 {[%emt 0:00:14]} Rc3 {[%emt 0:00:20]} 0-1

[Event "15th Chennai GM Open 2025"]
[Site "Chennai"]
[Date "2025.01.08"]
[Round "9.14"]
[White "Mehta Naitik R"]
[Black "Nguyen, Duc Hoa"]
[Result "0-1"]
[ECO "B40"]
[WhiteElo "2075"]
[BlackElo "2358"]
[Annotator "TA"]
[PlyCount "66"]
[EventDate "2025.01.02"]
[EventType "swiss"]
[EventCountry "IND"]
[SourceTitle "playchess.com"]
[Source "ChessBase"]
[SourceQuality "1"]
[TimeControl "5400+30"]

{[%evp 9,66,18,13,13,20,23,35,0,15,22,46,20,6,20,14,12,34,0,54,0,5,10,22,22,0,19,35,-9,53,57,69,-18,58,52,108,64,65,12,6,0,0,0,0,0,0,0,0,-753,-753,-29980,-29981,-29979,-29980,-12842,-12839,-6213,-6213,-5891,-5900]} 1. e4 {[%emt 0:08:07]} c5 {[%emt 0:00:48]} 2. Nf3 {[%emt 0:00:09]} e6 {[%emt 0:00:34]} 3. g3 {[%emt 0:00:06]} d5 {[%emt 0:00:39]} 4. exd5 {[%emt 0:00:21]} exd5 {[%emt 0:00:10]} 5. d4 {[%emt 0:00:21]} Nf6 {[%emt 0:00:25]} 6. Bg2 {[%emt 0:00:17]} Be7 {[%emt 0:00:27][%cal Bf8e7,Be7c5,Bc5b6][%mdl 32]} 7. O-O {[%emt 0:01:10]} O-O {[%emt 0:00:16]} 8. a3 {[%emt 0:00:21]} Nc6 {[%emt 0:00:42]} 9. dxc5 {[%emt 0:00:42]} Bxc5 {[%emt 0:00:10]} 10. b4 {[%emt 0:00:14]} Bb6 {[%emt 0:00:18]} 11. Bb2 {[%emt 0:00:13]} Bg4 {[%emt 0:02:12]} 12. Qd3 {[%emt 0:01:39]} Rc8 {[%emt 0:12:52]} 13. Nbd2 {[%emt 0:02:45]} Qd7 {[%emt 0:08:13]} (13... a5 $11) 14. b5 {[%emt 0:07:22]} (14. c4 $14) 14... Na5 {[%emt 0:02:39] ...Bf5 would now be deadly.} 15. Ne5 {[%emt 0:00:18]} Qc7 {[%emt 0:00:40]} 16. Nxg4 {[%emt 0:07:58]} (16. Bxd5 $2 Qxc2 17. Bxb7 Qxd3 (17... Nxb7 $2 18. Qxc2 Rxc2 19. Ndc4 $19) (17... Qxb2 $2 18. Bxc8 Bxc8 19. Nef3 $19) 18. Nxd3 Nxb7 $19) 16... Nxg4 {[%emt 0:00:12]} 17. Rac1 $1 {[%emt 0:00:16]} (17. Bxd5 $2 Qxc2 18. Qxc2 Rxc2 $19) (17. Qxd5 Nxf2 18. Rxf2 Bxf2+ 19. Kxf2 Rfd8 $17) 17... Rfd8 {[%emt 0:06:39]} 18. Bh3 {[%emt 0:12:41] A strong pair of Bishops.} (18. Bxd5 Nxf2 (18... Qc5 19. c4 $11) 19. Rxf2 Bxf2+ 20. Kg2 (20. Kxf2 $2 Qc5+ 21. Bd4 Qxd5 $19) 20... Qd7 $17) 18... h5 {[%emt 0:00:51]} (18... Nc4 $11 19. Bxg4 Nxb2) 19. Qf5 $14 {[%emt 0:02:14][%csl LRg4,LRh5]} Nc4 {[%emt 0:12:56]} 20. Nxc4 {[%emt 0:15:14]} (20. Qxh5 $14 Nxf2 (20... Nxd2 $2 21. Bxg4 Nxf1 22. Bf5 $18) 21. Bxc8 Nxb2 22. Bf5) 20... dxc4 {[%emt 0:00:50]} (20... g6 $11 21. Qg5 Qxc4 (21... dxc4 $2 {is the wrong capture.} 22. Bxg4 hxg4 23. Bf6 $18)) 21. Bxg7 {[%emt 0:17:13] Qg5 is the strong threat.} Nxf2 {[%emt 0:07:05]} (21... Qc5 $14 22. Bxg4 Kxg7 23. Qxh5 Rd2) 22. Rxf2 {[%emt 0:00:08]} (22. Kg2 Nxh3 23. Bf6 Rd2+ 24. Kxh3 Qd7 25. Qxd7 Rxd7 26. Rce1) 22... Bxf2+ {[%emt 0:00:24]} 23. Qxf2 {[%emt 0:01:05]} (23. Kxf2 $14 Qb6+ 24. Kf3 (24. Kg2 Kxg7 25. Qg5+ Qg6 $16) 24... Kxg7 25. Qg5+ Qg6 26. Qxg6+ Kxg6 27. Bxc8 Rxc8 28. Rd1) 23... Kxg7 $11 {[%emt 0:00:13]} 24. Bxc8 {[%emt 0:00:04]} (24. Rf1 {is more complex.} Qc5 25. Bxc8 Rxc8 26. c3) 24... Qxc8 $14 {[%emt 0:00:39][%mdl 4096] Endgame KQR-KQR} 25. Rf1 {[%emt 0:03:29]} Qe6 {[%emt 0:00:36]} 26. Qxa7 {[%emt 0:00:51]} b6 {[%emt 0:01:32]} 27. Qb7 {[%emt 0:06:39]} Rd5 {[%emt 0:03:08]} 28. Rf2 $2 {[%emt 0:00:41][%mdl 8192] [#]} (28. a4 $11) 28... h4 $1 $19 {[%emt 0:01:18] ( -> ...Rd1+)} 29. Qc6 {[%emt 0:04:44]} Rd1+ {[%emt 0:00:23]} 30. Rf1 {[%emt 0:01:18]} Qe3+ {[%emt 0:00:08]} 31. Kg2 {[%emt 0:00:06]} h3+ {[%emt 0:00:09]} 32. Kxh3 {[%emt 0:00:12]} Rxf1 {[%emt 0:00:07]} 33. Qxc4 {[%emt 0:00:08]} Qe6+ {[%emt 0:00:14]} 0-1